Workbook

Sheet 2 этап
A1: Протокол технических результатов
A2: ='[1]рег+тб'!A2:G2 -> Открытый чемпионат Республики Беларусь
A3: ='[1]рег+тб'!A3:G3 -> по спортивному лову рыбы донной удочкой методом квивертип (фидером), 2 этап
A4: ='[1]рег+тб'!A4:G4 -> 5-6 июля 2014г, р. Сож, г. Гомель
A5: N п/п | B5: Название команды | C5: Ф.И.О. рыболова-спортсмена | D5: I тур | H5: Промежуточная сумма мест команды | I5: II тур | M5: Сумма мест | N5: Вес за 2 тура | O5: Командный вес | P5: Итоговое место в личном зачете | Q5: Итоговая сумма мест команды | R5: Итоговое командное место
D6: Зона | E6: Сект | F6: Вес | G6: Место | I6: Зона | J6: Сект | K6: Вес | L6: Место
A7: 1 | B7: MatchAngler.by (Евсеенко И.) | C7: Гавриленко В. | D7: D | E7: 7 | F7: 3370 | G7: 6 | H7: =SUM(G7:G10) -> 29 | I7: A | J7: 9 | K7: 6150 | L7: 4 | M7: =G7+L7 -> 10 | N7: =F7+K7 -> 9520 | O7: =SUM(N7:N10) -> 28470 | P7: 15 | Q7: =SUM(M7:M10) -> 48 | R7: 4
C8: Липиев М. | D8: A | E8: 13 | F8: 2830 | G8: 10 | I8: C | J8: 12 | K8: 4610 | L8: 2 | M8: =G8+L8 -> 12 | N8: =F8+K8 -> 7440 | P8: 23
C9: Радчук В. | D9: B | E9: 7 | F9: 1100 | G9: 11 | I9: D | J9: 11 | K9: 1610 | L9: 11 | M9: 22 | N9: 2710 | P9: 43
C10: Соколов С. | D10: C | E10: 5 | F10: 3890 | G10: 2 | I10: B | J10: 10 | K10: 4910 | L10: 2 | M10: 4 | N10: 8800 | P10: 2
A11: 2 | B11: Grodnoclub (Пицун С., Смоляков В.) | C11: Бурбицкий Е. | D11: D | E11: 8 | F11: 3390 | G11: 5 | H11: =SUM(G11:G14) -> 21 | I11: D | J11: 4 | K11: 2480 | L11: 6 | M11: 11 | N11: 5870 | O11: =SUM(N11:N14) -> 37460 | P11: 20 | Q11: =SUM(M11:M14) -> 51 | R11: 5
C12: Цехановский В. | D12: A | E12: 8 | F12: 2350 | G12: 12 | I12: C | J12: 4 | K12: 1050 | L12: 13 | M12: 25 | N12: 3400 | P12: 50
C13: Пицун Д. | D13: B | E13: 1 | F13: 15830 | G13: 1 | I13: A | J13: 4 | K13: 5990 | L13: 5 | M13: 6 | N13: 21820 | P13: 6
C14: Якубович А. | D14: C | E14: 10 | F14: 3700 | G14: 3 | I14: B | J14: 13 | K14: 2670 | L14: 6 | M14: 9 | N14: 6370 | P14: 12.
A15: 3 | B15: Stivanol Plus (Минич Станислав) | C15: Абрамович Д. | D15: C | E15: 13 | F15: 760 | G15: 13 | H15: =SUM(G15:G18) -> 46 | I15: C | J15: 5 | K15: 1360 | L15: 11 | M15: 24 | N15: 2120 | O15: =SUM(N15:N18) -> 8580 | P15: 49 | Q15: =SUM(M15:M18) -> 95 | R15: 13
C16: Лазичный О. | D16: A | E16: 11 | F16: 900 | G16: 13 | I16: A | J16: 12 | K16: 1170 | L16: 12 | M16: 25 | N16: 2070 | P16: 51
C17: Змиевский А. | D17: D | E17: 6 | F17: 1120 | G17: 12 | I17: B | J17: 8 | K17: 250 | L17: 13 | M17: 25 | N17: 1370 | P17: 52
C18: Кисель И. | D18: B | E18: 12 | F18: 1990 | G18: 8 | I18: D | J18: 1 | K18: 1030 | L18: 13 | M18: 21 | N18: 3020 | P18: 42
A19: 4 | B19: Ebisu Feeder Team (Огродников В.) | C19: Моисеев Я. | D19: B | E19: 8 | F19: 1220 | G19: 10 | H19: =SUM(G19:G22) -> 32 | I19: A | J19: 8 | K19: 3650 | L19: 11 | M19: 21 | N19: 4870 | O19: =SUM(N19:N22) -> 20410 | P19: 40 | Q19: =SUM(M19:M22) -> 68 | R19: 11
C20: Какошко Е. | D20: A | E20: 6 | F20: 4960 | G20: 5 | I20: B | J20: 9 | K20: 1440 | L20: 9 | M20: 14 | N20: 6400 | P20: 32
C21: Матюшков И. | D21: C | E21: 9 | F21: 2080 | G21: 8 | I21: C | J21: 9 | K21: 3750 | L21: 4 | M21: 12 | N21: 5830 | P21: 25
C22: Титков Е. | D22: D | E22: 10 | F22: 1920 | G22: 9 | I22: D | J22: 5 | K22: 1390 | L22: 12 | M22: 21 | N22: 3310 | P22: 41
A23: 5 | B23: Briscola Feeder Team (Гуль С.) | C23: Розин А. | D23: A | E23: 12 | F23: 5420 | G23: 4 | H23: =SUM(G23:G26) -> 20 | I23: A | J23: 10 | K23: 4470 | L23: 8 | M23: 12 | N23: 9890 | O23: =SUM(N23:N26) -> 35230 | P23: 21 | Q23: =SUM(M23:M26) -> 36 | R23: 2
C24: Высоцкий А. | D24: D | E24: 11 | F24: 1710 | G24: 11 | I24: B | J24: 3 | K24: 3450 | L24: 4 | M24: 15 | N24: 5160 | P24: 33
C25: Евмененко А. | D25: B | E25: 6 | F25: 6650 | G25: 4 | I25: C | J25: 3 | K25: 4970 | L25: 1 | M25: 5 | N25: 11620 | P25: 4
C26: Якубович В. | D26: C | E26: 15 | F26: 3960 | G26: 1 | I26: D | J26: 10 | K26: 4600 | L26: 3 | M26: 4 | N26: 8560 | P26: 3
A27: 6 | B27: Colmic Belarus (Волкова С.) | C27: Волков А. | D27: B | E27: 11 | F27: 1350 | G27: 9 | H27: =SUM(G27:G30) -> 23 | I27: A | J27: 11 | K27: 970 | L27: 13 | M27: 22 | N27: 2320 | O27: =SUM(N27:N30) -> 24330 | P27: 44 | Q27: =SUM(M27:M30) -> 52 | R27: 6
C28: Лазарчик И. | D28: D | E28: 13 | F28: 6810 | G28: 1 | I28: C | J28: 13 | K28: 1870 | L28: 6 | M28: 7 | N28: 8680 | P28: 9
C29: Костечко М. | D29: A | E29: 9 | F29: 4690 | G29: 6 | I29: D | J29: 9 | K29: 3100 | L29: 5 | M29: 11 | N29: 7790 | P29: 19
C30: Пивоваров А. | D30: C | E30: 11 | F30: 2170 | G30: 7 | I30: B | J30: 12 | K30: 3370 | L30: 5 | M30: 12 | N30: 5540 | P30: 26
A31: 7 | B31: Гомельские рыси (Морозова Т., Князева И.) | C31: Морозов С. | D31: B | E31: 2 | F31: 3690 | G31: 5 | H31: =SUM(G31:G34) -> 31 | I31: A | J31: 15 | K31: 5970 | L31: 6 | M31: 11 | N31: 9660 | O31: =SUM(N31:N34) -> 34150 | P31: 17 | Q31: =SUM(M31:M34) -> 55 | R31: 7
C32: Маслов С. | D32: A | E32: 3 | F32: 13080 | G32: 1 | I32: D | J32: 6 | K32: 5810 | L32: 1 | M32: 2 | N32: 18890 | P32: 1
A33: 13 | C33: Князев Н. | D33: C | E33: 7 | F33: 1720 | G33: 12 | I33: B | J33: 11 | K33: 1650 | L33: 8 | M33: 20 | N33: 3370 | P33: 39
C34: Жировский М. | D34: D | E34: 3 | F34: 670 | G34: 13 | I34: C | J34: 7 | K34: 1560 | L34: 9 | M34: 22 | N34: 2230 | P34: 46
A35: 8 | B35: Becker-System (Баранов И.) | C35: Косарь И. | D35: B | E35: 10 | F35: 850 | G35: 12 | H35: =SUM(G35:G38) -> 31 | I35: B | J35: 2 | K35: 2560 | L35: 7 | M35: 19 | N35: 3410 | O35: =SUM(N35:N38) -> 26660 | P35: 37 | Q35: =SUM(M35:M38) -> 55 | R35: 8
C36: Лобов В. | D36: C | E36: 12 | F36: 3670 | G36: 4 | I36: A | J36: 13 | K36: 4190 | L36: 10 | M36: 14 | N36: 7860 | P36: 31
A37: 15 | C37: Шабалин О. | D37: A | E37: 7 | F37: 4520 | G37: 7 | I37: C | J37: 11 | K37: 2770 | L37: 5 | M37: 12 | N37: 7290 | P37: 24
C38: Федюнин А. | D38: D | E38: 1 | F38: 3050 | G38: 8 | I38: D | J38: 8 | K38: 5050 | L38: 2 | M38: 10 | N38: 8100 | P38: 16
A39: 9 | B39: Favorite Fishing by (Чындыр А., Ареховский А.) | C39: Полещук С. | D39: D | E39: 2 | F39: 4740 | G39: 2 | H39: =SUM(G39:G42) -> 17 | I39: C | J39: 15 | K39: 4100 | L39: 3 | M39: =G39+L39 -> 5 | N39: 8840 | O39: =SUM(N39:N42) -> 45650 | P39: 5 | Q39: =SUM(M39:M42) -> 28 | R39: 1
C40: Гордиенко А. | D40: C | E40: 14 | F40: 3440 | G40: 5 | I40: A | J40: 6 | K40: 6160 | L40: 3 | M40: =G40+L40 -> 8 | N40: 9600 | P40: 10
A41: 15 | C41: Цалков А. | D41: B | E41: 5 | F41: 11310 | G41: 2 | I41: D | J41: 3 | K41: 4310 | L41: 4 | M41: =G41+L41 -> 6 | N41: 15620 | P41: 7
C42: Халецкий А. | D42: A | E42: 14 | F42: 4350 | G42: 8 | I42: B | J42: 1 | K42: 7240 | L42: 1 | M42: =G42+L42 -> 9 | N42: 11590 | P42: 11
A43: 10 | B43: Wesr Feeder Team Brest | C43: Бочаров Д. | D43: D | E43: 12 | F43: 3120 | G43: 7 | H43: =SUM(G43:G46) -> 34 | I43: B | J43: 6 | K43: 920 | L43: 11 | M43: =G43+L43 -> 18 | N43: 4040 | O43: =SUM(N43:N46) -> 20450 | P43: 36 | Q43: =SUM(M43:M46) -> 74 | R43: 12
C44: Виноградов Е. | D44: A | E44: 10 | F44: 2700 | G44: 11 | I44: C | J44: 10 | K44: 1300 | L44: 12 | M44: 23 | N44: 4000 | P44: 47
A45: 15 | C45: Лапин И. | D45: C | E45: 3 | F45: 2060 | G45: 9 | I45: A | J45: 14 | K45: 5690 | L45: 7 | M45: 16 | N45: 7750 | P45: 34
C46: Гречаник Н. | D46: B | E46: 3 | F46: 3040 | G46: 7 | I46: D | J46: 12 | K46: 1620 | L46: 10 | M46: 17 | N46: 4660 | P46: 35
A47: 11 | B47: Feeder.by (Самордак В., Живец М.) | C47: Василевич А. | D47: D | E47: 4 | F47: 3630 | G47: 4 | H47: =SUM(G47:G50) -> 19 | I47: A | J47: 5 | K47: 4390 | L47: 9 | M47: 13 | N47: 8020 | O47: =SUM(N47:N50) -> 29810 | P47: 27 | Q47: =SUM(M47:M50) -> 45 | R47: 3
C48: Николаенков Ю. | D48: C | E48: 4 | F48: 3210 | G48: 6 | I48: C | J48: 6 | K48: 1720 | L48: 7 | M48: 13 | N48: 4930 | P48: 29
A49: 13 | C49: Майский Е. | D49: B | E49: 13 | F49: 3550 | G49: 6 | I49: D | J49: 2 | K49: 2230 | L49: 7 | M49: 13 | N49: 5780 | P49: 28
C50: Лисовский Ю. | D50: A | E50: 5 | F50: 7060 | G50: 3 | I50: B | J50: 7 | K50: 4020 | L50: 3 | M50: 6 | N50: 11080 | P50: 8
A51: 12 | B51: Hardcore feeder team (Дзен И.) | C51: Бурак А. | D51: B | E51: 9 | F51: 580 | G51: 13 | H51: =SUM(G51:G54) -> 28 | I51: C | J51: 8 | K51: 1480 | L51: 10 | M51: 23 | N51: 2060 | O51: =SUM(N51:N54) -> 26230 | P51: 48 | Q51: =SUM(M51:M54) -> 58 | R51: 9
C52: Тихонов К. | D52: C | E52: 8 | F52: 1860 | G52: 10 | I52: A | J52: 7 | K52: 7250 | L52: 2 | M52: 12 | N52: 9110 | P52: 22
A53: 15 | C53: Паращенко С. | D53: D | E53: 5 | F53: 3760 | G53: 3 | I53: B | J53: 5 | K53: 930 | L53: 10 | M53: 13 | N53: 4690 | P53: 30
C54: Дудкин В. | D54: A | E54: 4 | F54: 8440 | G54: 2 | I54: D | J54: 13 | K54: 1930 | L54: 8 | M54: 10 | N54: 10370 | P54: 14
A55: 13 | B55: OK (Базарнов А.) | C55: Головин О. | D55: D | E55: 9 | F55: 1760 | G55: 10 | H55: =SUM(G55:G58) -> 33 | I55: B | J55: 4 | K55: 520 | L55: 12 | M55: 22 | N55: 2280 | O55: =SUM(N55:N58) -> 27530 | P55: 45 | Q55: =SUM(M55:M58) -> 63 | R55: 10
C56: Прикота С. | D56: B | E56: 4 | F56: 7860 | G56: 3 | I56: C | J56: 14 | K56: 1670 | L56: 8 | M56: 11 | N56: 9530 | P56: 18
A57: 15 | C57: Ползунов Д. | D57: C | E57: 6 | F57: 1730 | G57: 11 | I57: D | J57: 7 | K57: 1790 | L57: 9 | M57: 20 | N57: 3520 | P57: 38
C58: Корево С. | D58: A | E58: 15 | F58: 4210 | G58: 9 | I58: A | J58: 3 | K58: 7990 | L58: 1 | M58: 10 | N58: 12200 | P58: 13
B60: гл.судья | C60: Высоцкая Ольга
B61: зональные судьи | C61: Солодовников Александр
C62: Цумарев Дмитрий
C63: Тарасевич Евгений
C64: Касабуцкий Александр

Sheet личный зачет итог
A1: Предварительные итоги чемпионата
A2: ФИО | B2: баллы 1 тур | C2: баллы 2 тур | D2: Вес 1-2 тур | E2: баллы 3 тур | F2: баллы 4 тур | G2: Вес 3-4 тур | H2: баллы 5 тур | I2: баллы 6 тур | J2: Вес 5-6 тур | K2: итого баллы | L2: итого вес | M2: место
A3: Полещук С. | B3: 2 | C3: 2 | D3: 9330 | E3: 2 | F3: 3 | G3: 8840 | K3: 9 | L3: 18170 | M3: 1
A4: Якубович В. | B4: 3 | C4: 3 | D4: 8160 | E4: 1 | F4: 3 | G4: 8560 | K4: 10 | L4: 16720 | M4: 2
A5: Халецкий А. | B5: 2 | C5: 1 | D5: 11480 | E5: 8 | F5: 1 | G5: 11590 | K5: 12 | L5: 23070 | M5: 3
A6: Федюнин А. | B6: 1 | C6: 2 | D6: 9870 | E6: 8 | F6: 2 | G6: 8100 | K6: 13 | L6: 17970 | M6: 4
A7: Матюшков И. | B7: 1 | C7: 2 | D7: 11400 | E7: 8 | F7: 4 | G7: 5830 | K7: 15 | L7: 17230 | M7: 5
A8: Лисовский Ю. | B8: 2 | C8: 8 | D8: 6820 | E8: 3 | F8: 3 | G8: 11080 | K8: 16 | L8: 17900 | M8: 6
A9: Гордиенко А. | B9: 2 | C9: 6 | D9: 7710 | E9: 5 | F9: 3 | G9: 9600 | K9: 16 | L9: 17310 | M9: 7
A10: Майский Е. | B10: 3 | C10: 1 | D10: 9330 | E10: 6 | F10: 7 | G10: 5780 | K10: 17 | L10: 15110 | M10: 8
A11: Цалков А. | B11: 10 | C11: 2 | D11: 6840 | E11: 2 | F11: 4 | G11: 15620 | K11: 18 | L11: 22460 | M11: 9
A12: Якубович А. | B12: 8 | C12: 1 | D12: 7420 | E12: 3 | F12: 6 | G12: 6370 | K12: 18 | L12: 13790 | M12: 10
A13: Высоцкий А. | B13: 1 | C13: 3 | D13: 10820 | E13: 11 | F13: 4 | G13: 5160 | K13: 19 | L13: 15980 | M13: 11
A14: Соколов С. | B14: 5 | C14: 11 | D14: 5560 | E14: 2 | F14: 2 | G14: 8800 | K14: 20 | L14: 14360 | M14: 12
A15: Евмененко А. | B15: 7 | C15: 9 | D15: 5880 | E15: 4 | F15: 1 | G15: 11620 | K15: 21 | L15: 17500 | M15: 13
A16: Василевич А. | B16: 4 | C16: 4 | D16: 7520 | E16: 4 | F16: 9 | G16: 8020 | K16: 21 | L16: 15540 | M16: 14
A17: Маслов С. | B17: 10 | C17: 10 | D17: 4680 | E17: 1 | F17: 1 | G17: 18890 | K17: 22 | L17: 23570 | M17: 15
A18: Липиев М. | B18: 5 | C18: 5 | D18: 7180 | E18: 10 | F18: 2 | G18: 7440 | K18: 22 | L18: 14620 | M18: 16
A19: Костечко М. | B19: 4 | C19: 7 | D19: 6390 | E19: 6 | F19: 5 | G19: 7790 | K19: 22 | L19: 14180 | M19: 17
A20: Какошко Е. | B20: 3 | C20: 6 | D20: 7580 | E20: 5 | F20: 9 | G20: 6400 | K20: 23 | L20: 13980 | M20: 18
A21: Косарь И. | B21: 1 | C21: 3 | D21: 7610 | E21: 12 | F21: 7 | G21: 3410 | K21: 23 | L21: 11020 | M21: 19
A22: Розин А. | B22: 7 | C22: 5 | D22: 6460 | E22: 4 | F22: 8 | G22: 9890 | K22: 24 | L22: 16350 | M22: 20
A23: Прикота С. | B23: 3 | C23: 10 | D23: 5900 | E23: 3 | F23: 8 | G23: 9530 | K23: 24 | L23: 15430 | M23: 21
A24: Лазарчик И. | B24: 11 | C24: 6 | D24: 5920 | E24: 1 | F24: 6 | G24: 8680 | K24: 24 | L24: 14600 | M24: 22
A25: Морозов С. | B25: 6 | C25: 8 | D25: 6160 | E25: 5 | F25: 6 | G25: 9660 | K25: 25 | L25: 15820 | M25: 23
A26: Ползунов Д. | B26: 4 | C26: 1 | D26: 9010 | E26: 11 | F26: 9 | G26: 3520 | K26: 25 | L26: 12530 | M26: 24
A27: Пицун Д. | B27: 9 | C27: 12 | D27: 5290 | E27: 1 | F27: 5 | G27: 21820 | K27: 27 | L27: 27110 | M27: 25
A28: Дудкин В. | B28: 6 | C28: 11 | D28: 5510 | E28: 2 | F28: 8 | G28: 10370 | K28: 27 | L28: 15880 | M28: 26
A29: Николаенков Ю. | B29: 6 | C29: 8 | D29: 6670 | E29: 6 | F29: 7 | G29: 4930 | K29: 27 | L29: 11600 | M29: 27
A30: Корево С. | B30: 7 | C30: 11 | D30: 6110 | E30: 9 | F30: 1 | G30: 12200 | K30: 28 | L30: 18310 | M30: 28
A31: Лапин И. | B31: 5 | C31: 7 | D31: 6810 | E31: 9 | F31: 7 | G31: 7750 | K31: 28 | L31: 14560 | M31: 29
A32: Бурбицкий Е. | B32: 10 | C32: 7 | D32: 5910 | E32: 5 | F32: 6 | G32: 5870 | K32: 28 | L32: 11780 | M32: 30
A33: Пивоваров А. | B33: 7 | C33: 10 | D33: 5760 | E33: 7 | F33: 5 | G33: 5540 | K33: 29 | L33: 11300 | M33: 31
A34: Головин О. | B34: 4 | C34: 3 | D34: 8090 | E34: 10 | F34: 12 | G34: 2280 | K34: 29 | L34: 10370 | M34: 32
A35: Гавриленко В. | B35: 9 | C35: 13 | D35: 4570 | E35: 6 | F35: 4 | G35: 9520 | K35: 32 | L35: 14090 | M35: 33
A36: Гречаник Н. | B36: 11 | C36: 4 | D36: 6780 | E36: 7 | F36: 10 | G36: 4660 | K36: 32 | L36: 11440 | M36: 34
A37: Бочаров Д. | B37: 5 | C37: 9 | D37: 6560 | E37: 7 | F37: 11 | G37: 4040 | K37: 32 | L37: 10600 | M37: 35
A38: Шабалин О. | B38: 9 | C38: 12 | D38: 5320 | E38: 7 | F38: 5 | G38: 7290 | K38: 33 | L38: 12610 | M38: 36
A39: Моисеев Я. | B39: 8 | C39: 4 | D39: 6590 | E39: 10 | F39: 11 | G39: 4870 | K39: 33 | L39: 11460 | M39: 37
A40: Тихонов К. | B40: 11 | C40: 12 | D40: 5520 | E40: 10 | F40: 2 | G40: 9110 | K40: 35 | L40: 14630 | M40: 38
A41: Радчук В. | B41: 9 | C41: 5 | D41: 6630 | E41: 11 | F41: 11 | G41: 2710 | K41: 36 | L41: 9340 | M41: 39
A42: Паращенко С. | B42: 11 | C42: 13 | D42: 3810 | E42: 3 | F42: 10 | G42: 4690 | K42: 37 | L42: 8500 | M42: 40
A43: Бурак А. | B43: 8 | C43: 7 | D43: 6450 | E43: 13 | F43: 10 | G43: 2060 | K43: 38 | L43: 8510 | M43: 41
A44: Лобов В. | B44: 13 | C44: 13 | D44: 3040 | E44: 4 | F44: 10 | G44: 7860 | K44: 40 | L44: 10900 | M44: 42
A45: Князев Н. | B45: 12 | C45: 9 | D45: 5470 | E45: 12 | F45: 8 | G45: 3370 | K45: 41 | L45: 8840 | M45: 43
A46: Лазичный О. | B46: 13 | C46: 5 | D46: 5340 | E46: 13 | F46: 12 | G46: 2070 | K46: 43 | L46: 7410 | M46: 44
A47: Виноградов Е. | B47: 12 | C47: 9 | D47: 5050 | E47: 11 | F47: 12 | G47: 4000 | K47: 44 | L47: 9050 | M47: 45
A48: Цехановский В. | B48: 13 | C48: 6 | D48: 5630 | E48: 12 | F48: 13 | G48: 3400 | K48: 44 | L48: 9030 | M48: 46
A49: Кисель И. | B49: 13 | C49: 10 | D49: 5230 | E49: 8 | F49: 13 | G49: 3020 | K49: 44 | L49: 8250 | M49: 47
A50: Волков А. | B50: 12 | C50: 11 | D50: 5140 | E50: 9 | F50: 13 | G50: 2320 | K50: 45 | L50: 7460 | M50: 48
A51: Жировский М. | B51: 10 | C51: 13 | D51: 4760 | E51: 13 | F51: 9 | G51: 2230 | K51: 45 | L51: 6990 | M51: 49
A52: Змиевский А. | B52: 12 | C52: 8 | D52: 4900 | E52: 12 | F52: 13 | G52: 1370 | K52: 45 | L52: 6270 | M52: 50
A53: Таптухин В. | B53: 6 | C53: 4 | D53: 7410 | E53: 0 | F53: 0 | G53: 0
A54: Минич С. | B54: 8 | C54: 12 | D54: 5400 | E54: 0 | F54: 0 | G54: 0
A55: Титков Е. | B55: 0 | C55: 0 | D55: 0 | E55: 9 | F55: 12 | G55: 3310
A56: Абрамович Д. | B56: 0 | C56: 0 | D56: 0 | E56: 13 | F56: 11 | G56: 2120

Sheet командный зачет итог
A1: Командный зачет итог
A2: команда | B2: сумма баллов 1 этап | C2: вес 1 этап | D2: сумма баллов 2 этап | E2: вес 2 этап | F2: сумма баллов 3 этап | G2: вес 3 этап | H2: сумма баллов | I2: вес
A3: Favorite Fishing by | B3: 27 | C3: 35360 | D3: 28 | E3: 45650 | H3: 55 | I3: 81010
A4: Briscola Feeder Team | B4: 38 | C4: 31320 | D4: 36 | E4: 35230 | H4: 74 | I4: 66550
A5: Feeder.by | B5: 36 | C5: 30340 | D5: 45 | E5: 29810 | H5: 81 | I5: 60150
A6: Ebisu Feeder Team | B6: 34 | C6: 32980 | D6: 68 | E6: 20410 | H6: 102 | I6: 53390
A7: OK | B7: 43 | C7: 29110 | D7: 63 | E7: 27530 | H7: 106 | I7: 56640
A8: Becker-System | B8: 54 | C8: 25840 | D8: 55 | E8: 26660 | H8: 109 | I8: 52500
A9: MatchAngler.by | B9: 62 | C9: 23940 | D9: 48 | E9: 28470 | H9: 110 | I9: 52410
A10: Grodnoclub | B10: 66 | C10: 24250 | D10: 51 | E10: 37460 | H10: 117 | I10: 61710
A11: Colmic Belarus | B11: 68 | C11: 23210 | D11: 52 | E11: 24330 | H11: 120 | I11: 47540
A12: Гомельские рыси | B12: 78 | C12: 21070 | D12: 55 | E12: 34150 | H12: 133 | I12: 55220
A13: Wesr Feeder Team Brest | B13: 62 | C13: 25200 | D13: 74 | E13: 20450 | H13: 136 | I13: 45650
A14: Hardcore feeder team | B14: 79 | C14: 21290 | D14: 58 | E14: 26230 | H14: 137 | I14: 47520
A15: Stivanol Plus | B15: 81 | C15: 20870 | D15: 95 | E15: 8580 | H15: 176 | I15: 29450
